bitfinex-derivatives/quotes_ETHF0:USTF0_20220103
["timestamp","ask_amount","ask_price","bid_price","bid_amount"]
[1641198042302,3.19251885,3816.3,3815.6,0.122356]
[1641198042600,3.19251885,3816.3,3815.8,11.3]
[1641198042799,3.19251885,3816.3,3815.8,11.550513]
[1641198043001,2.00479,3816.3,3815.8,11.428157]
[1641198043401,2.00479,3816.3,3815.8,13.09004215]
[1641198043601,2.00479,3816.3,3815.8,12.96768615]
[1641198044003,2.00479,3816.3,3815.8,11.658148]
[1641198052311,1.18772885,3816.6,3815.8,11.658148]
[1641198053112,3.19251885,3816.7,3815.8,11.658148]
[1641198054017,0.16297901,3816.6,3816.3,11.3]
[1641198054216,0.16297901,3816.6,3816.5,11.3]
[1641198055417,0.16297901,3816.7,3816.5,11.3]
[1641198055615,0.16297901,3816.7,3816.6,11.529991]
[1641198055818,0.16297901,3816.7,3816.6,11.3]
[1641198056017,1.18772885,3816.8,3816.6,11.3]
[1641198056218,0.16297901,3817.0,3816.6,11.3]
[1641198056219,1.35070786,3817.0,3816.6,11.3]
[1641198060722,1.18772885,3817.0,3816.5,11.3]
[1641198061123,2.00479,3817.1,3816.5,11.3]
[1641198070637,2.00479,3817.1,3816.3,11.428157]
[1641198074144,2.00479,3817.1,3816.3,12.7375374]
[1641198075946,2.00479,3817.1,3816.3,12.6093804]
[1641198076445,3.50479,3817.1,3816.3,12.6093804]
[1641198076648,1.5,3816.8,3816.2,2.00479]
[1641198076845,1.5,3817.0,3816.2,2.00479]
[1641198077246,2.00479,3817.1,3816.2,2.00479]
[1641198078247,1.5,3816.7,3816.2,2.00479]
[1641198078447,2.208356,3816.7,3816.2,2.00479]
[1641198078646,1.5,3816.4,3816.2,2.00479]
[1641198078847,0.708356,3816.7,3816.2,2.00479]
[1641198079047,0.586,3816.7,3816.2,2.00479]
[1641198079251,2.086,3816.7,3816.1,11.3]
[1641198079448,1.5,3816.5,3815.5,31.8928]
[1641198079946,0.586,3816.7,3815.5,31.8928]
[1641198080147,0.586,3816.7,3816.0,2.00479]
[1641198080748,0.88535581,3816.9,3816.0,2.00479]
[1641198081151,1.5,3816.7,3816.0,2.00479]
[1641198081551,2.1085,3816.7,3816.0,2.00479]
[1641198081752,1.5,3816.5,3816.0,2.00479]
[1641198082353,0.6085,3816.7,3816.0,2.00479]
[1641198083460,2.1085,3816.7,3816.0,2.00479]
[1641198083663,1.5,3816.5,3816.0,2.00479]
[1641198084163,0.6085,3816.7,3816.0,2.00479]
[1641198084564,1.5,3816.5,3816.0,2.00479]
[1641198084964,1.5,3816.2,3816.0,2.00479]
[1641198085166,1.622356,3816.2,3815.4,12.17227916]
[1641198085368,1.5,3816.1,3815.4,0.87227916]
[1641198085967,1.5,3816.1,3815.1,0.87227916]
[1641198086167,2.00479,3815.9,3815.1,12.17227916]
[1641198087368,2.00479,3815.9,3815.1,11.3]
[1641198087568,1.5,3815.8,3815.1,11.3]
[1641198088371,1.5,3815.8,3815.0,2.87706916]
[1641198088771,1.5,3815.8,3815.1,0.128157]
[1641198088972,2.89014581,3815.9,3815.1,0.128157]
[1641198089172,1.5,3815.8,3815.1,0.128157]
[1641198089775,1.5,3815.8,3815.0,13.30479]
[1641198089974,1.5,3815.6,3815.0,13.30479]
[1641198090375,2.89014581,3815.9,3815.0,13.30479]
[1641198090574,1.5,3815.8,3815.0,13.30479]
[1641198090977,2.89014581,3815.9,3815.0,13.30479]
[1641198091177,2.89014581,3815.9,3815.0,14.17706916]
[1641198092178,2.89014581,3815.9,3815.1,0.128157]
[1641198093781,1.5,3815.8,3815.1,0.128157]
[1641198094280,1.5,3815.8,3815.0,2.87706916]
[1641198094882,2.38535581,3815.8,3815.0,2.87706916]
[1641198095081,0.88535581,3815.8,3815.0,2.87706916]
[1641198095583,0.88535581,3815.8,3815.0,2.00479]
[1641198095584,0.88535581,3815.7,3815.0,2.00479]
[1641198096381,2.00479,3815.5,3814.9,0.87227916]
[1641198096982,2.00479,3815.5,3814.8,0.87227916]
[1641198097385,1.5,3815.3,3814.8,0.87227916]
[1641198099283,2.38535581,3815.3,3814.6,2.00479]
[1641198099484,0.88535581,3815.3,3814.6,13.30479]
[1641198100685,0.88535581,3815.2,3814.6,13.30479]
[1641198101185,0.88535581,3815.3,3814.6,13.30479]
[1641198101484,2.38535581,3815.3,3814.6,13.98609]
[1641198101683,0.88535581,3815.3,3814.6,13.98609]
[1641198102787,0.88535581,3815.3,3814.6,11.9813]
[1641198103285,2.89014581,3815.3,3814.7,0.128157]
[1641198105886,2.00479,3815.3,3814.7,0.128157]
[1641198107588,2.00479,3815.3,3814.6,0.6813]
[1641198107886,2.00479,3815.3,3814.6,0.128157]
[1641198113094,2.00479,3815.3,3814.6,12.035957]
[1641198113497,2.00479,3815.3,3814.8,11.3]
[1641198115900,2.00479,3815.3,3814.7,12.17227916]
[1641198116702,2.00479,3815.3,3814.7,11.3]
[1641198119104,2.00479,3815.3,3814.7,12.17227916]
[1641198120806,2.00479,3815.3,3814.8,0.87227916]
[1641198121907,2.00479,3815.3,3814.7,0.87227916]
[1641198123407,2.00479,3815.3,3814.7,1.00043616]
[1641198123607,2.89014581,3815.3,3814.7,1.00043616]
[1641198124208,2.89014581,3815.3,3814.7,0.87227916]
[1641198125515,2.89014581,3815.3,3814.6,0.87227916]
[1641198126816,2.89014581,3815.3,3814.4,46.35889246]
[1641198126817,2.89014581,3815.3,3814.7,0.87227916]
[1641198131921,1.5,3815.2,3814.7,0.87227916]
[1641198132120,1.5,3814.9,3814.7,0.87227916]
[1641198132321,0.122356,3814.8,3814.4,1.16340246]
[1641198132620,1.5,3814.5,3814.4,0.21840246]
[1641198132822,1.5,3814.5,3813.6,2.00479]
[1641198132823,1.7399224,3814.4,3813.6,2.00479]
[1641198133022,1.5,3814.2,3813.6,3.74254866]
[1641198134424,1.5,3814.2,3813.6,2.00479]
[1641198135628,0.25048174,3814.1,3813.6,2.00479]
[1641198135826,0.122356,3814.0,3813.6,2.00479]
[1641198136729,0.25048174,3814.1,3813.6,2.00479]
[1641198138028,1.5,3814.2,3813.6,2.00479]
[1641198139430,1.622356,3814.3,3813.6,2.00479]
[1641198139831,2.00479,3814.4,3813.6,2.00479]
[1641198140934,1.5,3814.1,3813.1,11.9282]
[1641198141836,1.5,3814.1,3813.2,11.3]
[1641198142035,2.00479,3814.4,3813.3,0.128157]
[1641198142237,2.00479,3813.8,3813.3,0.128157]
[1641198145039,2.00479,3814.4,3813.3,0.128157]
[1641198146241,2.00479,3814.4,3813.6,11.3]
[1641198149043,62.34578374,3815.1,3813.6,11.3]
[1641198150144,62.34578374,3815.1,3813.9,2.00479]
[1641198150346,2.00479,3814.8,3814.0,11.3]
[1641198151647,2.00479,3814.8,3814.1,0.128157]
[1641198152347,2.00479,3814.8,3814.0,11.3]
[1641198153746,2.00479,3814.8,3814.1,0.128157]
[1641198160856,2.00479,3814.8,3813.9,2.88039513]
[1641198161058,2.00479,3814.8,3813.9,14.18039513]
[1641198161260,2.00479,3814.8,3813.9,2.88039513]
[1641198161457,2.00479,3814.8,3814.0,0.128157]
[1641198162961,0.88580173,3814.6,3814.0,0.128157]
[1641198163857,0.88580173,3814.6,3813.9,2.00479]
[1641198165162,0.88580173,3814.6,3813.9,13.432947]
[1641198165361,0.88580173,3814.6,3813.9,2.132947]
[1641198165660,0.88580173,3814.5,3813.9,2.132947]
[1641198166463,0.88580173,3814.4,3813.9,2.132947]
[1641198166662,2.38580173,3814.4,3813.9,2.00479]
[1641198167364,0.88580173,3814.4,3814.0,11.3]
[1641198167567,0.88580173,3814.4,3814.0,11.8932]
[1641198168064,0.88580173,3814.2,3814.0,11.8932]
[1641198168263,0.30441779,3814.3,3814.1,11.529991]
[1641198168463,1.779e-05,3814.3,3814.2,0.122356]
[1641198169064,1.18058374,3814.5,3814.2,0.122356]
[1641198169266,1.18058374,3814.5,3814.3,0.229991]
[1641198169465,2.00479,3814.8,3814.1,11.3]
[1641198175772,2.00479,3814.8,3814.0,11.3]
[1641198189085,2.89294775,3814.8,3814.1,0.87727442]
[1641198189288,2.89294775,3814.8,3814.2,11.3]
[1641198193595,0.88815775,3814.7,3814.2,11.3]
[1641198194196,0.88815775,3814.7,3814.3,11.3]
[1641198195096,2.89294775,3814.8,3814.3,11.3]
[1641198196399,2.89294775,3814.8,3814.1,0.87727442]
[1641198196599,2.89294775,3814.8,3814.2,11.3]
[1641198196802,2.00479,3814.8,3814.1,0.87727442]
[1641198197001,0.30258972,3814.7,3814.6,0.87727442]
[1641198198200,1.7881208,3814.7,3814.6,0.87727442]
[1641198198400,1.7881208,3814.7,3814.6,1.10726542]
[1641198198600,1.7881208,3814.7,3814.6,0.87727442]
[1641198199701,1.7881208,3814.7,3814.6,1.10726542]
[1641198200104,1.7881208,3814.7,3814.6,0.87727442]
[1641198201706,0.30258972,3814.7,3814.6,0.87727442]
[1641198203510,1.7881208,3814.7,3814.6,0.87727442]
[1641198203809,1.7881208,3814.7,3814.6,1.10726542]
[1641198204209,1.7881208,3814.7,3814.3,1.16804686]
[1641198204210,1.7881208,3814.7,3814.5,0.87727442]
[1641198205110,1.7881208,3814.7,3814.6,0.87727442]
[1641198205714,0.30258972,3814.7,3814.6,0.87727442]
[1641198206211,0.30258972,3814.7,3814.6,12.40726542]
[1641198206613,0.30258972,3814.7,3814.6,1.10726542]
[1641198207914,1.48553108,3814.8,3814.6,1.10726542]
[1641198208719,1.48553108,3814.8,3814.6,0.87727442]
[1641198208918,1.48553108,3814.8,3814.6,1.10726542]
[1641198209216,1.48553108,3814.8,3814.7,0.87727442]
[1641198210716,1.48553108,3814.8,3814.6,0.87727442]
[1641198210919,1.48553108,3814.8,3814.6,1.10726542]
[1641198211117,1.48553108,3814.8,3814.6,0.87727442]
[1641198212318,1.04523358,3815.0,3814.4,2.00479]
[1641198212517,2.08308739,3814.8,3814.4,2.00479]
[1641198213219,1.48506409,3814.5,3814.4,2.00479]
[1641198213419,1.48506409,3814.5,3814.4,2.234781]
[1641198213821,1.48506409,3814.5,3814.4,2.00479]
[1641198214020,1.48506409,3814.6,3814.4,2.88206442]
[1641198216130,1.48506409,3814.5,3814.4,2.00479]
[1641198216332,1.48506409,3814.5,3814.4,2.234781]
[1641198216629,1.48506409,3814.5,3814.4,2.00479]
[1641198218131,1.48506409,3814.5,3814.4,2.234781]
[1641198219036,1.48506409,3814.7,3814.4,2.234781]
[1641198219332,1.48506409,3814.7,3814.4,2.00479]
[1641198219532,0.30258972,3814.5,3814.4,2.00479]
[1641198220433,1.48506409,3814.7,3814.4,2.00479]
[1641198220633,1.48506409,3814.7,3814.5,0.229991]
[1641198220833,1.48506409,3814.7,3814.4,2.00479]
[1641198222934,1.48506409,3814.6,3814.4,2.00479]
[1641198226337,1.48506409,3814.5,3814.4,2.00479]
[1641198228940,1.48506409,3814.5,3814.0,0.87727442]
[1641198229139,1.48506409,3814.5,3814.0,1.00543142]
[1641198229339,1.48506409,3814.5,3814.1,11.3]
[1641198230140,1.48506409,3814.5,3814.0,1.00543142]
[1641198230741,1.48506409,3814.6,3814.2,0.87727442]
[1641198231043,1.18709608,3814.4,3814.2,0.87727442]
[1641198231740,1.48506409,3814.4,3814.0,0.87727442]
[1641198232843,1.18716997,3814.2,3814.0,0.87727442]
[1641198233042,1.18716997,3814.2,3814.1,0.229991]
[1641198233244,1.18716997,3814.2,3814.0,0.87727442]
[1641198234043,1.18716997,3814.2,3814.1,0.229991]
[1641198236044,1.48506409,3814.4,3814.1,0.229991]
[1641198236646,1.48506409,3814.4,3814.0,0.87727442]
[1641198237649,1.18716515,3814.1,3814.0,0.87727442]
[1641198237846,1.18716515,3814.1,3814.0,1.10726542]
[1641198238549,1.18716515,3814.2,3814.0,0.229991]
[1641198240548,1.18716515,3814.3,3814.0,0.229991]
[1641198242049,1.18716515,3814.2,3814.0,0.229991]
[1641198245552,1.18716515,3814.3,3814.0,0.229991]
[1641198247456,1.18716515,3814.2,3814.0,0.229991]
[1641198249262,1.18716515,3814.3,3814.0,0.229991]
[1641198250970,1.18716515,3814.3,3814.0,11.529991]
[1641198253572,1.18716515,3814.3,3814.0,0.87727442]
[1641198254572,1.18716515,3814.3,3814.1,0.229991]
[1641198254773,1.18716515,3814.3,3814.0,0.87727442]
[1641198255673,1.18716515,3814.3,3814.0,12.17727442]
[1641198255874,1.18716515,3814.3,3814.1,0.229991]
[1641198257474,1.18716515,3814.3,3814.0,11.3]
[1641198258075,1.18716515,3814.3,3814.0,0.87727442]
[1641198258675,1.18716515,3814.3,3814.0,12.17727442]
[1641198259377,1.18716515,3814.3,3814.1,0.229991]
[1641198259979,1.18716515,3814.2,3814.1,0.229991]
[1641198260981,1.18716515,3814.2,3814.0,12.17727442]
[1641198261178,1.18716515,3814.2,3814.1,0.229991]
[1641198261582,1.18716515,3814.2,3814.1,0.87727442]
[1641198262487,1.18716515,3814.2,3814.1,1.10726542]
[1641198263085,1.18716515,3814.2,3814.1,0.87727442]
[1641198264385,1.18716515,3814.2,3814.1,1.10726542]
[1641198266287,1.18716515,3814.2,3814.1,0.87727442]
[1641198267088,1.18716515,3814.2,3814.1,1.10726542]
[1641198267289,1.18716515,3814.2,3814.1,0.87727442]
[1641198268191,1.18716515,3814.2,3814.1,1.10726542]
[1641198269593,1.18716515,3814.2,3814.1,0.87727442]
[1641198269793,1.18716515,3814.2,3814.1,1.10726542]
[1641198271002,1.18716515,3814.2,3814.1,0.87727442]
[1641198272298,1.18716515,3814.2,3814.1,1.10726542]
[1641198273000,1.18716515,3814.2,3814.1,0.87727442]
[1641198273699,1.18716515,3814.2,3814.1,1.10726542]
[1641198273899,1.18716515,3814.2,3814.1,0.87727442]
[1641198275103,1.18716515,3814.2,3814.1,1.10726542]
[1641198275302,1.18716515,3814.2,3814.1,0.87727442]
[1641198276507,1.18716515,3814.2,3814.1,1.10726542]
[1641198276806,1.18716515,3814.2,3814.1,0.87727442]
[1641198277711,1.18716515,3814.2,3814.1,1.10726542]
[1641198277906,1.18716515,3814.2,3814.1,0.87727442]
[1641198278107,1.78765381,3814.4,3813.9,3.17283686]
[1641198278508,1.78765381,3814.4,3814.0,0.61974919]
[1641198278910,1.78765381,3814.4,3813.9,3.17283686]
[1641198279108,1.78765381,3814.4,3814.2,0.87986817]
[1641198288922,1.78765381,3814.4,3813.9,1.16804686]
[1641198289119,2.51465381,3814.4,3813.9,1.16804686]
[1641198289318,3.96365056,3814.4,3813.9,1.16804686]
[1641198289522,2.00479,3814.1,3813.9,1.16804686]
[1641198289920,2.00479,3814.1,3813.6,1.16804686]
[1641198289921,0.122356,3814.0,3813.6,1.16804686]
[1641198290219,2.00479,3814.1,3813.6,1.16804686]
[1641198290620,1.5,3814.0,3813.6,1.16804686]
[1641198290821,1.61893802,3814.0,3813.6,1.16804686]
[1641198291423,1.48517427,3813.7,3813.6,1.16804686]
[1641198291621,1.48517427,3813.7,3813.3,1.16804686]
[1641198292723,2.00479,3814.1,3813.2,3.30099386]
[1641198292724,1.48517427,3813.6,3813.2,3.30099386]
[1641198293925,1.48517427,3813.8,3813.2,3.30099386]
[1641198294124,1.48517427,3813.8,3813.3,1.16804686]
[1641198294927,1.18809991,3813.5,3813.3,1.16804686]
[1641198295126,1.18809991,3813.5,3813.4,0.229991]
[1641198295524,1.18809991,3813.5,3813.3,1.16804686]
[1641198297325,1.18809991,3813.5,3813.4,0.229991]
[1641198297527,1.18809991,3813.5,3813.3,1.16804686]
[1641198298026,1.18809991,3813.4,3813.2,3.17283686]
[1641198298628,1.18809991,3813.4,3813.3,1.16804686]
[1641198299228,1.18809991,3813.4,3813.3,1.39803786]
[1641198299429,1.18809991,3813.4,3813.3,1.16804686]
[1641198300428,1.48517427,3813.6,3813.3,1.16804686]
[1641198300629,1.48517427,3813.6,3813.2,3.17283686]
[1641198301531,1.18537376,3813.7,3813.2,2.00479]
[1641198307343,1.18537376,3813.7,3813.3,11.3]
[1641198307541,1.18537376,3813.7,3813.6,13.30479]
[1641198307741,1.18537376,3813.7,3813.6,14.049481]
[1641198309155,1.18537376,3814.2,3813.6,14.049481]
[1641198310448,0.88892301,3813.9,3813.6,14.049481]
[1641198312450,0.88892301,3814.0,3813.6,14.049481]
[1641198314753,0.88892301,3814.0,3813.7,11.26]
[1641198315354,0.88892301,3813.9,3813.7,11.26]
[1641198315557,0.88892301,3813.9,3813.8,0.229991]
[1641198315753,0.88892301,3813.9,3813.8,11.489991]
[1641198315953,0.88892301,3813.9,3813.8,11.26]
[1641198317054,0.88892301,3813.9,3813.8,11.489991]
[1641198317255,0.88892301,3813.9,3813.8,0.229991]
[1641198317657,0.88892301,3814.0,3813.8,0.229991]
[1641198317857,0.88892301,3814.0,3813.6,2.00479]
[1641198318258,0.88892301,3813.9,3813.6,2.00479]
[1641198318458,0.88892301,3813.9,3813.7,0.229991]
[1641198319960,0.30258972,3814.4,3813.7,0.229991]
[1641198319961,0.88892301,3813.8,3813.7,0.229991]
[1641198321760,0.88892301,3813.9,3813.7,0.229991]
[1641198322360,0.88892301,3813.9,3813.6,13.26479]
[1641198322560,0.88892301,3813.8,3813.7,0.229991]
[1641198323162,0.88892301,3813.8,3813.6,13.26479]
[1641198323363,0.88892301,3813.8,3813.7,0.229991]
[1641198324765,0.88892301,3813.8,3813.7,11.26]
[1641198324964,0.88892301,3813.8,3813.7,0.229991]
[1641198325164,0.88892301,3813.9,3813.6,2.00479]
[1641198325564,0.88892301,3813.9,3813.6,13.26479]
[1641198325865,0.88892301,3813.8,3813.7,11.489991]
[1641198327269,0.88892301,3813.9,3813.7,11.489991]
[1641198327666,0.88892301,3813.9,3813.7,0.229991]
[1641198327867,0.88892301,3813.9,3813.6,13.26479]
[1641198328068,0.88892301,3813.9,3813.7,11.489991]
[1641198330172,0.88892301,3813.8,3813.7,11.489991]
[1641198330370,0.88892301,3813.8,3813.7,0.229991]
[1641198330572,0.88892301,3813.8,3813.6,2.00479]
[1641198331073,0.88892301,3813.8,3813.7,0.229991]
[1641198333477,0.88892301,3813.8,3813.6,2.00479]
[1641198333677,0.88892301,3813.8,3813.7,0.229991]
[1641198334679,0.88892301,3813.9,3813.6,2.88361881]
[1641198335579,0.88892301,3813.9,3813.7,0.229991]
[1641198335780,0.88892301,3813.9,3813.6,2.74249]
[1641198335982,0.88892301,3813.9,3813.7,11.26]
[1641198337484,0.88892301,3813.9,3813.7,11.489991]
[1641198338886,1.18537376,3814.1,3813.8,0.122356]
[1641198339086,2.2107421,3815.0,3813.8,0.122356]
[1641198339087,2.2107421,3815.0,3814.1,11.26]
[1641198339686,34.1191321,3815.1,3814.2,0.61883024]
[1641198339887,34.1191321,3815.1,3814.6,2.00479]
[1641198340088,4.2155321,3815.1,3814.6,13.87439]
[1641198340288,4.2155321,3815.1,3814.6,2.61439]
[1641198340889,2.00479,3815.1,3814.6,2.61439]
[1641198342091,2.00479,3815.1,3814.7,0.128157]
[1641198342690,2.00479,3815.1,3814.6,13.26479]
[1641198342892,2.00479,3815.1,3814.6,2.00479]
[1641198344693,2.00479,3815.1,3814.1,11.26]
[1641198346101,2.00479,3815.1,3814.1,13.26479]
[1641198348399,3.48768281,3815.1,3814.1,13.26479]
[1641198350002,1.18632261,3814.8,3814.3,11.26]
[1641198350203,1.18632261,3814.8,3814.4,0.128157]
[1641198350603,3.48768281,3815.1,3814.4,0.128157]
[1641198350604,1.18632261,3814.9,3814.4,0.128157]
[1641198352905,1.18632261,3814.9,3814.3,1.1720834]
[1641198353105,1.95212261,3814.9,3814.3,1.1720834]
[1641198353306,1.18632261,3814.8,3814.2,1.1720834]
[1641198353508,1.18632261,3814.8,3814.2,1.3002404]
[1641198354608,1.18632261,3814.7,3814.2,0.128157]
[1641198356412,1.18632261,3814.8,3814.2,0.128157]
[1641198357414,1.18632261,3814.7,3814.2,0.128157]
[1641198359219,1.18632261,3814.8,3814.2,0.128157]
[1641198360021,0.88871538,3814.5,3814.2,0.128157]
[1641198360221,0.88871538,3814.5,3814.3,0.229991]
[1641198361021,0.88871538,3814.5,3814.3,11.489991]
[1641198362423,0.88871538,3814.6,3814.3,11.489991]
[1641198362822,0.88871538,3814.6,3814.3,0.229991]
[1641198363421,0.88871538,3814.6,3814.2,12.26635638]
[1641198363921,0.88871538,3814.5,3814.2,12.26635638]
[1641198364127,0.88871538,3814.5,3814.3,0.229991]
[1641198364325,0.88871538,3814.5,3814.3,11.489991]
[1641198364528,0.88871538,3814.5,3814.3,0.229991]
[1641198364727,0.88871538,3814.5,3814.3,11.489991]
[1641198365026,0.88871538,3814.5,3814.2,1.00635638]
[1641198365226,0.88871538,3814.5,3814.3,0.229991]
[1641198366126,0.88871538,3814.5,3814.2,0.128157]
[1641198366327,0.88871538,3814.5,3814.3,0.229991]
[1641198366727,0.88871538,3814.5,3814.2,0.128157]
[1641198366927,0.88871538,3814.5,3814.1,2.88298938]
[1641198367329,0.88871538,3814.5,3814.1,3.01114638]
[1641198367532,0.88871538,3814.4,3814.1,3.01114638]
[1641198368534,0.88871538,3814.4,3814.2,11.489991]
[1641198370240,0.88871538,3814.5,3814.2,11.489991]
[1641198372542,0.88871538,3814.5,3814.2,12.36819038]
[1641198373642,0.88871538,3814.5,3814.2,1.10819038]
[1641198374242,0.88871538,3814.5,3814.3,11.26]
[1641198374443,0.88871538,3814.5,3814.2,1.10819038]
[1641198374444,0.88871538,3814.5,3814.4,0.229991]
[1641198374646,0.88871538,3814.5,3814.2,0.87819938]
[1641198375446,0.88871538,3814.4,3814.1,2.88298938]
[1641198375646,0.88871538,3814.4,3814.2,0.229991]
[1641198377348,0.88871538,3814.4,3814.1,2.88298938]
[1641198377548,0.88871538,3814.4,3814.2,0.229991]
[1641198379152,1.18632261,3814.7,3814.2,0.229991]
[1641198379153,0.88871538,3814.5,3814.2,0.229991]
[1641198380854,0.88871538,3814.4,3814.2,1.10819038]
[1641198382755,0.88871538,3814.4,3814.2,0.87819938]
[1641198384254,0.88871538,3814.4,3814.2,1.10819038]
[1641198384658,0.88871538,3814.4,3814.2,0.87819938]
[1641198385756,0.88871538,3814.4,3814.2,1.10819038]
[1641198390158,0.88871538,3814.4,3814.2,1.65279038]
[1641198390559,0.88871538,3814.5,3814.3,0.87819938]
[1641198391959,0.88871538,3814.5,3814.4,11.26]
[1641198392161,0.88871538,3814.5,3814.4,11.489991]
[1641198394364,0.26496332,3815.0,3814.4,11.489991]
[1641198394365,0.88871538,3814.7,3814.4,11.489991]
[1641198395663,0.88871538,3814.7,3814.5,12.13803117]
[1641198396463,0.88871538,3814.7,3814.6,0.229991]
[1641198397767,0.88871538,3814.7,3814.5,0.87803117]
[1641198398365,0.88871538,3814.7,3814.6,0.229991]
[1641198398566,0.88871538,3814.7,3814.5,0.87803117]
[1641198399166,0.88871538,3814.7,3814.5,12.13803117]
[1641198399367,1.45128593,3815.0,3814.6,0.229991]
[1641198399567,1.18632261,3814.7,3814.6,0.229991]
[1641198400667,1.18632261,3814.7,3814.5,1.1720834]
[1641198400869,1.18632261,3814.7,3814.6,0.229991]
[1641198401766,1.18632261,3814.7,3814.5,1.1720834]
[1641198402870,1.18632261,3814.7,3814.6,0.229991]
[1641198403472,1.18632261,3814.9,3814.6,1.10894381]
[1641198406876,1.18632261,3814.9,3814.6,12.36894381]
[1641198407279,1.18632261,3814.9,3814.7,0.87895281]
[1641198408883,1.45128593,3814.9,3814.6,0.87895281]
[1641198409084,1.45128593,3814.9,3814.7,0.229991]
[1641198413786,1.45128593,3814.9,3814.6,0.87895281]
[1641198415090,1.18632261,3814.8,3814.5,1.00710981]
[1641198415290,1.18632261,3814.8,3814.6,0.229991]
[1641198415490,1.18632261,3814.8,3814.5,1.00710981]
[1641198415889,1.18632261,3814.8,3814.5,0.87895281]
[1641198420101,1.18632261,3814.8,3814.5,12.13895281]
[1641198420398,1.18632261,3814.8,3814.6,0.229991]
[1641198421007,1.18632261,3814.8,3814.5,12.13895281]
[1641198423699,1.18632261,3814.8,3814.4,0.128157]
[1641198423700,1.18632261,3814.8,3814.6,1.10894381]
[1641198423899,1.18632261,3814.8,3814.6,0.87895281]
[1641198425403,1.18632261,3814.7,3814.5,0.87895281]
[1641198425802,1.18632261,3814.7,3814.5,1.10894381]
[1641198426002,1.18632261,3814.7,3814.5,0.87895281]
[1641198426706,1.18632261,3814.7,3814.6,0.229991]
[1641198427506,1.18632261,3814.7,3814.5,0.87895281]
[1641198428308,1.18632261,3814.7,3814.6,0.229991]
[1641198430218,1.18632261,3814.7,3814.5,0.87895281]
[1641198430422,1.18632261,3814.7,3814.6,11.26]
[1641198430620,1.18632261,3814.7,3814.5,0.87895281]
[1641198431017,1.18632261,3814.7,3814.6,0.229991]
[1641198431219,1.18632261,3814.7,3814.5,12.13895281]
[1641198431718,1.18632261,3814.7,3814.5,0.87895281]
[1641198433122,1.18632261,3814.7,3814.6,0.229991]
[1641198433322,1.18632261,3814.7,3814.5,0.87895281]
[1641198435522,1.18632261,3814.7,3814.5,1.10894381]
[1641198437526,1.18632261,3814.7,3814.5,0.87895281]
[1641198438232,1.18632261,3814.7,3814.5,1.10894381]
[1641198440734,1.18632261,3814.7,3814.5,0.229991]
[1641198440934,1.18632261,3814.6,3814.5,0.229991]
[1641198441833,1.18632261,3814.6,3814.4,1.3002404]
[1641198442235,1.18632261,3814.6,3814.4,1.1720834]
[1641198442833,1.18632261,3814.6,3814.4,1.4020744]
[1641198443534,1.18632261,3814.6,3814.4,1.1720834]
[1641198448340,1.18632261,3814.6,3814.4,1.4020744]
[1641198448941,1.18632261,3814.6,3814.4,1.1720834]
[1641198450641,1.18632261,3814.6,3814.4,1.9096744]
[1641198452247,1e-08,3814.6,3814.5,0.229991]
[1641198452447,0.26496332,3815.0,3814.5,11.489991]
[1641198453046,2.00479,3815.1,3814.5,11.489991]
[1641198453648,2.00479,3815.1,3814.6,0.51816909]
[1641198454648,2.00479,3815.1,3815.0,0.87923385]
[1641198456048,2.00479,3815.1,3814.9,0.87923385]
[1641198459854,2.00479,3815.1,3815.0,0.229991]
[1641198460256,2.00479,3815.1,3814.8,0.87923385]
[1641198461458,2.00479,3815.1,3814.9,0.229991]
[1641198462264,1.48514163,3815.0,3814.9,1.10922485]
[1641198463165,1.48514163,3815.0,3814.9,0.87923385]
[1641198464367,1.48514163,3815.0,3814.9,1.10922485]
[1641198464568,1.48514163,3815.0,3814.9,0.87923385]
[1641198465270,1.48514163,3815.0,3814.9,1.10922485]
[1641198465470,2.00479,3815.1,3814.8,1.00739085]
[1641198465668,2.00479,3815.1,3814.8,0.87923385]
[1641198466069,1.18701603,3814.9,3814.8,0.87923385]
[1641198466270,1.18701603,3814.9,3814.8,1.10922485]
[1641198466870,1.18701603,3814.9,3814.8,0.87923385]
[1641198469373,1.18701603,3814.9,3814.8,1.10922485]
[1641198469574,1.18701603,3814.9,3814.8,0.87923385]
[1641198475680,1.18701603,3814.9,3814.7,0.87923385]
[1641198477481,1.18701603,3814.9,3814.8,0.229991]
[1641198478384,1.18701603,3814.9,3814.7,0.87923385]
[1641198478685,1.18701603,3814.9,3814.8,0.87923385]
[1641198479485,1.18701603,3814.9,3814.8,1.10922485]
[1641198479686,1.18701603,3814.9,3814.8,1.61412485]
[1641198480187,1.18701603,3814.9,3814.8,1.38413385]
[1641198480786,1.18701603,3814.9,3814.8,0.87923385]
[1641198480987,1.18701603,3814.9,3814.7,0.87923385]
[1641198482192,1.18701603,3814.8,3814.7,0.87923385]
[1641198484892,0.26114201,3815.0,3814.4,1.30134858]
[1641198485091,1.74628364,3815.0,3814.6,1.17319158]
[1641198486190,1.74628364,3815.0,3814.9,0.87999316]
[1641198486993,1.48514163,3815.0,3814.8,0.87999316]
[1641198490897,1.48514163,3815.0,3814.9,0.229991]
[1641198491097,1.48514163,3815.0,3814.8,0.87999316]
[1641198491998,1.48514163,3815.0,3814.7,0.128157]
[1641198492199,0.26114201,3815.0,3814.7,1.30134858]
[1641198492399,0.26114201,3815.0,3814.8,0.229991]
[1641198492600,0.26114201,3815.0,3814.7,1.30134858]
[1641198493099,0.26114201,3815.0,3814.8,0.229991]
[1641198493301,1.74628364,3815.2,3814.8,0.229991]
[1641198493500,1.74628364,3815.2,3814.7,1.30134858]
[1641198494200,1.74628364,3815.2,3815.0,0.88055653]
[1641198497107,1.74628364,3815.2,3814.7,1.17319158]
[1641198497307,2.49798364,3815.2,3814.7,1.17319158]
[1641198497508,2.49798364,3815.2,3814.6,1.17319158]
[1641198498610,1.48514163,3815.0,3814.6,1.17319158]
[1641198498811,1.48514163,3815.0,3814.5,3.17798158]
[1641198499611,1.48514163,3815.0,3814.5,2.00479]
[1641198500413,1.48514163,3814.8,3814.5,2.00479]
[1641198501213,1.48514163,3814.7,3814.5,2.00479]
[1641198502611,1.48514163,3814.7,3814.5,2.234781]
[1641198503211,1.48514163,3814.7,3814.5,2.00479]
[1641198505117,1.48514163,3814.8,3814.5,2.00479]
[1641198505920,1.48514163,3814.7,3814.5,2.00479]